[Event "Titled Tuesday Blitz December 20 Late 2022"]
[White "Floresvillar Gonzalez, Luis Migu"]
[Black "Rodriguez Santiago, Jaime"]
[WhiteFideId "5100542"]
[BlackFideId "3100898"]
[WhiteElo "2040"]
[BlackElo "2025"]
[Result "1/2-1/2"]
[Round "09"]
[TimeControl "180+1"]
[Date "2022.12.21"]
[WhiteClock "0:00:04"]
[BlackClock "0:00:09"]

1. d4 {[%clk 0:03:00]}  d5 {[%clk 0:02:55]} 2. c3 {[%clk 0:03:00]}  c5 {[%clk 0:02:52]} 3. dxc5 {[%clk 0:02:58]}  e5 {[%clk 0:02:50]} 4. b4 {[%clk 0:02:55]}  Nf6 {[%clk 0:02:48]} 5. Bb2 {[%clk 0:02:55]}  Be7 {[%clk 0:02:42]} 6. e3 {[%clk 0:02:54]}  O-O {[%clk 0:02:42]} 7. Nf3 {[%clk 0:02:54]}  Bg4 {[%clk 0:02:40]} 8. Be2 {[%clk 0:02:54]}  Bxf3 {[%clk 0:02:38]} 9. Bxf3 {[%clk 0:02:53]}  e4 {[%clk 0:02:36]} 10. Be2 {[%clk 0:02:52]}  Nc6 {[%clk 0:02:36]} 11. Nd2 {[%clk 0:02:51]}  a6 {[%clk 0:02:31]} 12. Nb3 {[%clk 0:02:45]}  Ne5 {[%clk 0:02:19]} 13. Rc1 {[%clk 0:02:32]}  Nc4 {[%clk 0:02:09]} 14. Bxc4 {[%clk 0:02:27]}  dxc4 {[%clk 0:02:10]} 15. Qxd8 {[%clk 0:02:26]}  Rfxd8 {[%clk 0:02:11]} 16. Nd2 {[%clk 0:02:19]}  a5 {[%clk 0:01:59]} 17. a3 {[%clk 0:02:14]}  axb4 {[%clk 0:01:58]} 18. axb4 {[%clk 0:02:14]}  Ra2 {[%clk 0:01:48]} 19. Nxc4 {[%clk 0:02:14]}  b5 {[%clk 0:01:40]} 20. cxb6 {[%clk 0:02:11]}  Rc8 {[%clk 0:01:39]} 21. b7 {[%clk 0:02:11]}  Rb8 {[%clk 0:01:39]} 22. Ra1 {[%clk 0:02:06]}  Rxa1+ {[%clk 0:01:36]} 23. Bxa1 {[%clk 0:02:05]}  Rxb7 {[%clk 0:01:37]} 24. Nd2 {[%clk 0:01:58]}  Kf8 {[%clk 0:01:35]} 25. Ke2 {[%clk 0:01:57]}  Bd6 {[%clk 0:01:29]} 26. h3 {[%clk 0:01:55]}  Be5 {[%clk 0:01:29]} 27. Rb1 {[%clk 0:01:39]}  Ra7 {[%clk 0:01:26]} 28. Bb2 {[%clk 0:01:34]}  Ra2 {[%clk 0:01:23]} 29. Nc4 {[%clk 0:01:32]}  Bb8 {[%clk 0:01:19]} 30. Ra1 {[%clk 0:01:32]}  Rxa1 {[%clk 0:01:15]} 31. Bxa1 {[%clk 0:01:32]}  Ke7 {[%clk 0:01:14]} 32. Bb2 {[%clk 0:01:31]}  Kd7 {[%clk 0:01:12]} 33. Kd2 {[%clk 0:01:30]}  Kc6 {[%clk 0:01:11]} 34. Kc2 {[%clk 0:01:29]}  Nd5 {[%clk 0:01:08]} 35. Nd2 {[%clk 0:01:27]}  f5 {[%clk 0:01:06]} 36. b5+ {[%clk 0:01:24]}  Kb6 {[%clk 0:00:59]} 37. c4 {[%clk 0:01:24]}  Nb4+ {[%clk 0:00:57]} 38. Kb3 {[%clk 0:01:19]}  Nd3 {[%clk 0:00:50]} 39. Bd4+ {[%clk 0:01:19]}  Kb7 {[%clk 0:00:50]} 40. f3 {[%clk 0:01:19]}  exf3 {[%clk 0:00:47]} 41. gxf3 {[%clk 0:01:18]}  g5 {[%clk 0:00:41]} 42. e4 {[%clk 0:01:16]}  fxe4 {[%clk 0:00:39]} 43. Nxe4 {[%clk 0:01:16]}  h6 {[%clk 0:00:37]} 44. Be3 {[%clk 0:01:12]}  Ne1 {[%clk 0:00:35]} 45. h4 {[%clk 0:01:11]}  gxh4 {[%clk 0:00:27]} 46. Bxh6 {[%clk 0:01:05]}  Nxf3 {[%clk 0:00:27]} 47. Nf2 {[%clk 0:01:02]}  Ba7 {[%clk 0:00:22]} 48. Nh3 {[%clk 0:01:01]}  Nd4+ {[%clk 0:00:21]} 49. Kc3 {[%clk 0:00:59]}  Nf5 {[%clk 0:00:20]} 50. Bg5 {[%clk 0:00:56]}  Bc5 {[%clk 0:00:20]} 51. Kd3 {[%clk 0:00:53]}  Kb6 {[%clk 0:00:20]} 52. Nf4 {[%clk 0:00:52]}  Ka5 {[%clk 0:00:17]} 53. Nh3 {[%clk 0:00:48]}  Kb4 {[%clk 0:00:15]} 54. Nf4 {[%clk 0:00:48]}  Nd6 {[%clk 0:00:15]} 55. Nd5+ {[%clk 0:00:47]}  Ka5 {[%clk 0:00:14]} 56. Bxh4 {[%clk 0:00:47]}  Nxb5 {[%clk 0:00:09]} 57. Be1+ {[%clk 0:00:45]}  Ka6 {[%clk 0:00:07]} 58. cxb5+ {[%clk 0:00:30]}  Kxb5 {[%clk 0:00:07]} 59. Nc3+ {[%clk 0:00:30]}  Kc6 {[%clk 0:00:07]} 60. Ne4 {[%clk 0:00:30]}  Be7 {[%clk 0:00:07]} 61. Bc3 {[%clk 0:00:30]}  Kd7 {[%clk 0:00:07]} 62. Kc4 {[%clk 0:00:30]}  Kc6 {[%clk 0:00:08]} 63. Bd4 {[%clk 0:00:29]}  Bd8 {[%clk 0:00:09]} 64. Nc3 {[%clk 0:00:28]}  Bc7 {[%clk 0:00:10]} 65. Nd5 {[%clk 0:00:28]}  Kd7 {[%clk 0:00:11]} 66. Nf6+ {[%clk 0:00:26]}  Ke6 {[%clk 0:00:11]} 67. Ne4 {[%clk 0:00:23]}  Bh2 {[%clk 0:00:11]} 68. Ng5+ {[%clk 0:00:23]}  Kf5 {[%clk 0:00:11]} 69. Nf3 {[%clk 0:00:24]}  Bb8 {[%clk 0:00:10]} 70. Nd2 {[%clk 0:00:24]}  Kg4 {[%clk 0:00:11]} 71. Nb3 {[%clk 0:00:25]}  Kh3 {[%clk 0:00:11]} 72. Nc5 {[%clk 0:00:25]}  Kh2 {[%clk 0:00:12]} 73. Ne4 {[%clk 0:00:25]}  Bg3 {[%clk 0:00:13]} 74. Kd3 {[%clk 0:00:25]}  Kh3 {[%clk 0:00:13]} 75. Ke2 {[%clk 0:00:24]}  Bf4 {[%clk 0:00:14]} 76. Kf3 {[%clk 0:00:24]}  Bb8 {[%clk 0:00:14]} 77. Bf6 {[%clk 0:00:23]}  Kh2 {[%clk 0:00:13]} 78. Nf2 {[%clk 0:00:22]}  Kg1 {[%clk 0:00:12]} 79. Bd4 {[%clk 0:00:21]}  Kh2 {[%clk 0:00:12]} 80. Ng4+ {[%clk 0:00:20]}  Kh3 {[%clk 0:00:12]} 81. Bf6 {[%clk 0:00:19]}  Bc7 {[%clk 0:00:10]} 82. Nf2+ {[%clk 0:00:19]}  Kh2 {[%clk 0:00:10]} 83. Bg5 {[%clk 0:00:17]}  Bb8 {[%clk 0:00:09]} 84. Bh4 {[%clk 0:00:15]}  Kg1 {[%clk 0:00:07]} 85. Bf6 {[%clk 0:00:16]}  Kh2 {[%clk 0:00:07]} 86. Bg5 {[%clk 0:00:16]}  Kg1 {[%clk 0:00:07]} 87. Ke2 {[%clk 0:00:14]}  Kh2 {[%clk 0:00:07]} 88. Kf3 {[%clk 0:00:14]}  Kg1 {[%clk 0:00:07]} 89. Be3 {[%clk 0:00:13]}  Kh2 {[%clk 0:00:07]} 90. Ng4+ {[%clk 0:00:12]}  Kh3 {[%clk 0:00:07]} 91. Bg5 {[%clk 0:00:11]}  Bc7 {[%clk 0:00:06]} 92. Be7 {[%clk 0:00:11]}  Bb8 {[%clk 0:00:06]} 93. Nf2+ {[%clk 0:00:10]}  Kh2 {[%clk 0:00:06]} 94. Bc5 {[%clk 0:00:08]}  Bc7 {[%clk 0:00:05]} 95. Kg4 {[%clk 0:00:07]}  Bb8 {[%clk 0:00:05]} 96. Nh3 {[%clk 0:00:07]}  Kg2 {[%clk 0:00:05]} 97. Ng5 {[%clk 0:00:06]}  Kf1 {[%clk 0:00:05]} 98. Kf3 {[%clk 0:00:06]}  Ke1 {[%clk 0:00:06]} 99. Nh3 {[%clk 0:00:05]}  Kd1 {[%clk 0:00:06]} 100. Ke3 {[%clk 0:00:04]}  Kc2 {[%clk 0:00:07]} 101. Kf3 {[%clk 0:00:03]}  Kb3 {[%clk 0:00:08]} 102. Nf2 {[%clk 0:00:03]}  Ka4 {[%clk 0:00:09]} 103. Ne4 {[%clk 0:00:04]}  Kb5 {[%clk 0:00:10]} 104. Nf2 {[%clk 0:00:03]}  Kc6 {[%clk 0:00:10]} 105. Ne4 {[%clk 0:00:03]}  Kd5 {[%clk 0:00:09]} 106. Nf2 {[%clk 0:00:04]}  Kxc5 {[%clk 0:00:09]} 1/2-1/2


[Site "https://www.chess.com"]

[Event "Titled Tuesday Blitz December 20 Late 2022"]
[White "Forgacs, Attila Jr."]
[Black "Sebag, Marie"]
[WhiteFideId "773654"]
[BlackFideId "617822"]
[WhiteElo "2425"]
[BlackElo "2604"]
[Result "0-1"]
[Round "09"]
[TimeControl "180+1"]
[Date "2022.12.21"]
[WhiteClock "0:00:17"]
[BlackClock "0:00:26"]

1. e4 {[%clk 0:03:00]}  d6 {[%clk 0:02:59]} 2. d4 {[%clk 0:03:00]}  Nf6 {[%clk 0:02:58]} 3. Nc3 {[%clk 0:03:00]}  g6 {[%clk 0:02:58]} 4. f4 {[%clk 0:03:01]}  Bg7 {[%clk 0:02:58]} 5. Bd3 {[%clk 0:03:01]}  O-O {[%clk 0:02:58]} 6. Nf3 {[%clk 0:03:02]}  c5 {[%clk 0:02:57]} 7. d5 {[%clk 0:03:02]}  Na6 {[%clk 0:02:56]} 8. Bc4 {[%clk 0:02:57]}  Nc7 {[%clk 0:02:53]} 9. O-O {[%clk 0:02:56]}  b5 {[%clk 0:02:50]} 10. Nxb5 {[%clk 0:02:47]}  Nxb5 {[%clk 0:02:50]} 11. Bxb5 {[%clk 0:02:47]}  Nxe4 {[%clk 0:02:50]} 12. Re1 {[%clk 0:02:44]}  Rb8 {[%clk 0:02:38]} 13. Bc4 {[%clk 0:02:35]}  Nf6 {[%clk 0:02:34]} 14. c3 {[%clk 0:02:32]}  Nd7 {[%clk 0:02:32]} 15. Qe2 {[%clk 0:02:15]}  Nb6 {[%clk 0:02:29]} 16. Bb3 {[%clk 0:02:14]}  Re8 {[%clk 0:02:12]} 17. Be3 {[%clk 0:02:00]}  c4 {[%clk 0:01:54]} 18. Bxc4 {[%clk 0:01:48]}  Nxc4 {[%clk 0:01:54]} 19. Qxc4 {[%clk 0:01:49]}  Rxb2 {[%clk 0:01:54]} 20. Bxa7 {[%clk 0:01:49]}  Bg4 {[%clk 0:01:47]} 21. Rf1 {[%clk 0:01:28]}  Qa5 {[%clk 0:01:03]} 22. Bd4 {[%clk 0:01:27]}  Rc8 {[%clk 0:01:01]} 23. Qd3 {[%clk 0:01:12]}  Qxd5 {[%clk 0:01:00]} 24. a4 {[%clk 0:01:05]}  Bxf3 {[%clk 0:00:41]} 25. Rxf3 {[%clk 0:01:01]}  Bxd4+ {[%clk 0:00:38]} 26. Qxd4 {[%clk 0:00:47]}  Qxd4+ {[%clk 0:00:35]} 27. cxd4 {[%clk 0:00:48]}  Rcc2 {[%clk 0:00:34]} 28. a5 {[%clk 0:00:39]}  Rxg2+ {[%clk 0:00:33]} 29. Kf1 {[%clk 0:00:39]}  Rxh2 {[%clk 0:00:33]} 30. Ke1 {[%clk 0:00:32]}  Ra2 {[%clk 0:00:29]} 31. Rb1 {[%clk 0:00:18]}  Rxa5 {[%clk 0:00:28]} 32. Rb7 {[%clk 0:00:17]}  Ra1+ {[%clk 0:00:26]} 0-1


[Site "https://www.chess.com"]

[Event "Titled Tuesday Blitz December 20 Late 2022"]
[White "Gasparyan, David"]
[Black "Veiga, Jose Francisco R P Neves"]
[WhiteFideId "13311980"]
[BlackFideId "1930087"]
[WhiteElo "2452"]
[BlackElo "2320"]
[Result "0-1"]
[Round "09"]
[TimeControl "180+1"]
[Date "2022.12.21"]
[WhiteClock "0:00:12"]
[BlackClock "0:00:56"]

1. e3 {[%clk 0:03:00]}  c5 {[%clk 0:02:59]} 2. c4 {[%clk 0:03:00]}  Nc6 {[%clk 0:02:59]} 3. a3 {[%clk 0:03:00]}  g6 {[%clk 0:02:59]} 4. Qc2 {[%clk 0:03:01]}  Bg7 {[%clk 0:02:59]} 5. g3 {[%clk 0:03:01]}  e6 {[%clk 0:02:58]} 6. Bg2 {[%clk 0:03:02]}  Nge7 {[%clk 0:02:59]} 7. Ne2 {[%clk 0:03:02]}  O-O {[%clk 0:03:00]} 8. O-O {[%clk 0:03:03]}  b6 {[%clk 0:03:00]} 9. Nbc3 {[%clk 0:03:02]}  Bb7 {[%clk 0:03:00]} 10. d3 {[%clk 0:02:59]}  d5 {[%clk 0:03:00]} 11. b3 {[%clk 0:02:57]}  dxc4 {[%clk 0:02:53]} 12. dxc4 {[%clk 0:02:57]}  a6 {[%clk 0:02:53]} 13. Bb2 {[%clk 0:02:57]}  Qc7 {[%clk 0:02:54]} 14. Rfd1 {[%clk 0:02:53]}  Rfd8 {[%clk 0:02:52]} 15. Ne4 {[%clk 0:02:53]}  Ne5 {[%clk 0:02:47]} 16. Nf4 {[%clk 0:02:49]}  Nf5 {[%clk 0:02:32]} 17. Rxd8+ {[%clk 0:02:46]}  Rxd8 {[%clk 0:02:32]} 18. Bc3 {[%clk 0:02:33]}  Nd6 {[%clk 0:02:26]} 19. Rd1 {[%clk 0:02:26]}  Nxe4 {[%clk 0:02:25]} 20. Rxd8+ {[%clk 0:02:25]}  Qxd8 {[%clk 0:02:25]} 21. Bxe4 {[%clk 0:02:26]}  Nf3+ {[%clk 0:02:07]} 22. Bxf3 {[%clk 0:01:47]}  Bxf3 {[%clk 0:02:06]} 23. Bxg7 {[%clk 0:01:48]}  Kxg7 {[%clk 0:02:06]} 24. Qd3 {[%clk 0:01:38]}  Qf6 {[%clk 0:02:03]} 25. a4 {[%clk 0:00:43]}  Qa1+ {[%clk 0:02:00]} 26. Qf1 {[%clk 0:00:43]}  Qb2 {[%clk 0:01:58]} 27. a5 {[%clk 0:00:40]}  Qxb3 {[%clk 0:01:47]} 28. axb6 {[%clk 0:00:40]}  Qxb6 {[%clk 0:01:48]} 29. Nd3 {[%clk 0:00:39]}  f6 {[%clk 0:01:45]} 30. Ne1 {[%clk 0:00:34]}  Bc6 {[%clk 0:01:45]} 31. f3 {[%clk 0:00:34]}  a5 {[%clk 0:01:45]} 32. Qd3 {[%clk 0:00:33]}  a4 {[%clk 0:01:42]} 33. Nc2 {[%clk 0:00:31]}  Bxf3 {[%clk 0:01:40]} 34. Qd7+ {[%clk 0:00:31]}  Kh6 {[%clk 0:01:40]} 35. Ne1 {[%clk 0:00:29]}  Be4 {[%clk 0:01:34]} 36. Qxa4 {[%clk 0:00:27]}  Qb1 {[%clk 0:01:32]} 37. Qa5 {[%clk 0:00:25]}  Qd1 {[%clk 0:01:27]} 38. Kf2 {[%clk 0:00:16]}  e5 {[%clk 0:01:24]} 39. Qxc5 {[%clk 0:00:13]}  Qd2+ {[%clk 0:01:24]} 40. Kf1 {[%clk 0:00:13]}  Qxh2 {[%clk 0:01:23]} 41. Qf8+ {[%clk 0:00:13]}  Kg5 {[%clk 0:01:23]} 42. Qb4 {[%clk 0:00:13]}  Qxg3 {[%clk 0:01:20]} 43. Ke2 {[%clk 0:00:14]}  h5 {[%clk 0:01:20]} 44. c5 {[%clk 0:00:13]}  Qg4+ {[%clk 0:01:20]} 45. Kd2 {[%clk 0:00:13]}  h4 {[%clk 0:01:19]} 46. Qa4 {[%clk 0:00:06]}  h3 {[%clk 0:01:18]} 47. Qe8 {[%clk 0:00:05]}  h2 {[%clk 0:01:15]} 48. c6 {[%clk 0:00:05]}  h1=Q {[%clk 0:01:15]} 49. c7 {[%clk 0:00:05]}  Qh2+ {[%clk 0:01:12]} 50. Kc3 {[%clk 0:00:05]}  Bb7 {[%clk 0:01:04]} 51. Nd3 {[%clk 0:00:05]}  Qa2 {[%clk 0:00:58]} 52. Qb5 {[%clk 0:00:03]}  Ba6 {[%clk 0:00:52]} 53. Qc5 {[%clk 0:00:02]}  Qac4+ {[%clk 0:00:52]} 54. Kb2 {[%clk 0:00:01]}  Qxc5 {[%clk 0:00:51]} 55. Nxc5 {[%clk 0:00:02]}  Qb4+ {[%clk 0:00:50]} 56. Nb3 {[%clk 0:00:03]}  Kg4 {[%clk 0:00:45]} 57. Kc2 {[%clk 0:00:02]}  Qxb3+ {[%clk 0:00:45]} 58. Kxb3 {[%clk 0:00:03]}  Kf3 {[%clk 0:00:46]} 59. Kb4 {[%clk 0:00:02]}  Bc8 {[%clk 0:00:46]} 60. Ka5 {[%clk 0:00:03]}  g5 {[%clk 0:00:47]} 61. Kb6 {[%clk 0:00:04]}  g4 {[%clk 0:00:48]} 62. Ka7 {[%clk 0:00:04]}  g3 {[%clk 0:00:49]} 63. Kb8 {[%clk 0:00:05]}  Bh3 {[%clk 0:00:49]} 64. c8=Q {[%clk 0:00:04]}  Bxc8 {[%clk 0:00:49]} 65. Kxc8 {[%clk 0:00:05]}  g2 {[%clk 0:00:50]} 66. Kd7 {[%clk 0:00:06]}  g1=Q {[%clk 0:00:51]} 67. Ke6 {[%clk 0:00:06]}  Qxe3 {[%clk 0:00:52]} 68. Kxf6 {[%clk 0:00:07]}  Qf4+ {[%clk 0:00:52]} 69. Ke6 {[%clk 0:00:08]}  e4 {[%clk 0:00:53]} 70. Kd5 {[%clk 0:00:08]}  e3 {[%clk 0:00:54]} 71. Kc5 {[%clk 0:00:09]}  e2 {[%clk 0:00:55]} 72. Kd5 {[%clk 0:00:10]}  e1=Q {[%clk 0:00:56]} 73. Kc5 {[%clk 0:00:11]}  Qc3+ {[%clk 0:00:56]} 74. Kd5 {[%clk 0:00:11]}  Qfd4+ {[%clk 0:00:55]} 75. Ke6 {[%clk 0:00:12]}  Qc6+ {[%clk 0:00:55]} 76. Ke7 {[%clk 0:00:12]}  Qdd7+ {[%clk 0:00:55]} 77. Kf8 {[%clk 0:00:12]}  Qcc8# {[%clk 0:00:56]} 0-1


[Site "https://www.chess.com"]

[Event "Titled Tuesday Blitz December 20 Late 2022"]
[White "Gerbelli Neto, Eduardo"]
[Black "TheKnightOfBosnia"]
[WhiteFideId "2103281"]
[WhiteElo "2178"]
[BlackElo "2433"]
[Result "1-0"]
[Round "09"]
[TimeControl "180+1"]
[Date "2022.12.21"]
[WhiteClock "0:00:46"]
[BlackClock "0:00:18"]

1. e4 {[%clk 0:03:00]}  e5 {[%clk 0:02:59]} 2. Nf3 {[%clk 0:02:59]}  Nc6 {[%clk 0:03:00]} 3. d4 {[%clk 0:02:58]}  exd4 {[%clk 0:03:01]} 4. Nxd4 {[%clk 0:02:59]}  Nf6 {[%clk 0:03:00]} 5. Nc3 {[%clk 0:02:59]}  Bb4 {[%clk 0:02:59]} 6. Nxc6 {[%clk 0:02:58]}  bxc6 {[%clk 0:03:00]} 7. Bd3 {[%clk 0:02:58]}  d5 {[%clk 0:03:00]} 8. e5 {[%clk 0:02:59]}  Bxc3+ {[%clk 0:02:35]} 9. bxc3 {[%clk 0:02:58]}  Nd7 {[%clk 0:02:29]} 10. f4 {[%clk 0:02:37]}  Nc5 {[%clk 0:02:20]} 11. O-O {[%clk 0:02:36]}  Ba6 {[%clk 0:02:08]} 12. Bxa6 {[%clk 0:02:24]}  Nxa6 {[%clk 0:02:08]} 13. Ba3 {[%clk 0:02:24]}  Qh4 {[%clk 0:02:00]} 14. Qe2 {[%clk 0:02:16]}  Nb8 {[%clk 0:01:50]} 15. g3 {[%clk 0:02:04]}  Qh6 {[%clk 0:01:44]} 16. f5 {[%clk 0:02:01]}  c5 {[%clk 0:01:31]} 17. e6 {[%clk 0:01:49]}  fxe6 {[%clk 0:01:08]} 18. Qb5+ {[%clk 0:01:40]}  Nd7 {[%clk 0:00:41]} 19. fxe6 {[%clk 0:01:38]}  Qe3+ {[%clk 0:00:41]} 20. Rf2 {[%clk 0:01:22]}  Qxe6 {[%clk 0:00:40]} 21. Re2 {[%clk 0:01:21]}  Qxe2 {[%clk 0:00:29]} 22. Qxe2+ {[%clk 0:01:20]}  Kf7 {[%clk 0:00:29]} 23. Rf1+ {[%clk 0:01:18]}  Nf6 {[%clk 0:00:29]} 24. Bxc5 {[%clk 0:01:15]}  Rae8 {[%clk 0:00:27]} 25. Qh5+ {[%clk 0:01:10]}  Ke6 {[%clk 0:00:23]} 26. Re1+ {[%clk 0:01:00]}  Ne4 {[%clk 0:00:23]} 27. c4 {[%clk 0:00:48]}  c6 {[%clk 0:00:23]} 28. cxd5+ {[%clk 0:00:47]}  cxd5 {[%clk 0:00:23]} 29. c4 {[%clk 0:00:48]}  g6 {[%clk 0:00:18]} 30. Qxd5+ {[%clk 0:00:46]} 1-0


[Site "https://www.chess.com"]

[Event "Titled Tuesday Blitz December 20 Late 2022"]
[White "Gurevich, Dmitry"]
[Black "Dzierzak, Radoslaw"]
[WhiteFideId "2000407"]
[BlackFideId "1161407"]
[WhiteElo "2506"]
[BlackElo "2111"]
[Result "1-0"]
[Round "09"]
[TimeControl "180+1"]
[Date "2022.12.21"]
[WhiteClock "0:01:01"]
[BlackClock "0:01:04"]

1. d4 {[%clk 0:03:00]}  Nf6 {[%clk 0:02:49]} 2. c4 {[%clk 0:03:00]}  e6 {[%clk 0:02:49]} 3. Nc3 {[%clk 0:03:00]}  Bb4 {[%clk 0:02:50]} 4. a3 {[%clk 0:03:00]}  Bxc3+ {[%clk 0:02:49]} 5. bxc3 {[%clk 0:03:01]}  b6 {[%clk 0:02:49]} 6. e3 {[%clk 0:03:01]}  Bb7 {[%clk 0:02:49]} 7. f3 {[%clk 0:03:01]}  Nc6 {[%clk 0:02:49]} 8. Bd3 {[%clk 0:03:00]}  Ba6 {[%clk 0:02:48]} 9. Rb1 {[%clk 0:02:51]}  Na5 {[%clk 0:02:49]} 10. Qe2 {[%clk 0:02:50]}  d5 {[%clk 0:02:30]} 11. cxd5 {[%clk 0:02:47]}  Bxd3 {[%clk 0:02:28]} 12. Qxd3 {[%clk 0:02:47]}  exd5 {[%clk 0:02:29]} 13. Ne2 {[%clk 0:02:47]}  O-O {[%clk 0:02:28]} 14. O-O {[%clk 0:02:35]}  Re8 {[%clk 0:02:22]} 15. Ng3 {[%clk 0:02:35]}  h5 {[%clk 0:02:17]} 16. Re1 {[%clk 0:02:25]}  h4 {[%clk 0:01:49]} 17. Nf5 {[%clk 0:02:15]}  g6 {[%clk 0:01:49]} 18. Nxh4 {[%clk 0:02:07]}  Ne4 {[%clk 0:01:49]} 19. g3 {[%clk 0:02:01]}  Nc4 {[%clk 0:01:27]} 20. fxe4 {[%clk 0:01:54]}  Rxe4 {[%clk 0:01:28]} 21. Nf3 {[%clk 0:01:46]}  Qe7 {[%clk 0:01:27]} 22. Nd2 {[%clk 0:01:24]}  Nxd2 {[%clk 0:01:26]} 23. Bxd2 {[%clk 0:01:23]}  Kg7 {[%clk 0:01:27]} 24. c4 {[%clk 0:01:17]}  c6 {[%clk 0:01:24]} 25. Rf1 {[%clk 0:01:09]}  Rh8 {[%clk 0:01:22]} 26. Rf4 {[%clk 0:01:08]}  Qe6 {[%clk 0:01:19]} 27. Rxe4 {[%clk 0:01:03]}  dxe4 {[%clk 0:01:19]} 28. Qe2 {[%clk 0:01:03]}  f5 {[%clk 0:01:04]} 29. d5 {[%clk 0:01:01]}  cxd5 {[%clk 0:01:04]} 30. Bc3+ {[%clk 0:01:01]} 1-0


[Site "https://www.chess.com"]

[Event "Titled Tuesday Blitz December 20 Late 2022"]
[White "Jimenez Almeida, Luis David"]
[Black "Haydon, David L"]
[WhiteFideId "22242244"]
[BlackFideId "415405"]
[WhiteElo "2498"]
[BlackElo "2644"]
[Result "0-1"]
[Round "09"]
[TimeControl "180+1"]
[Date "2022.12.21"]
[WhiteClock "0:01:58"]
[BlackClock "0:02:48"]

1. e4 {[%clk 0:03:00]}  c6 {[%clk 0:03:00]} 2. Nc3 {[%clk 0:02:59]}  d5 {[%clk 0:03:01]} 3. Qf3 {[%clk 0:02:59]}  Nf6 {[%clk 0:03:01]} 4. e5 {[%clk 0:02:58]}  Ng8 {[%clk 0:03:01]} 5. d4 {[%clk 0:02:58]}  e6 {[%clk 0:03:01]} 6. Nh3 {[%clk 0:02:57]}  c5 {[%clk 0:03:00]} 7. Ng5 {[%clk 0:02:54]}  Nh6 {[%clk 0:02:56]} 8. Bb5+ {[%clk 0:02:44]}  Nc6 {[%clk 0:02:53]} 9. Be3 {[%clk 0:02:30]}  cxd4 {[%clk 0:02:51]} 10. Bxd4 {[%clk 0:02:29]}  a6 {[%clk 0:02:51]} 11. Bxc6+ {[%clk 0:02:29]}  bxc6 {[%clk 0:02:50]} 12. O-O-O {[%clk 0:02:20]}  Qxg5+ {[%clk 0:02:49]} 13. Be3 {[%clk 0:01:58]}  Qg4 {[%clk 0:02:48]} 0-1


[Site "https://www.chess.com"]

[Event "Titled Tuesday Blitz December 20 Late 2022"]
[White "Jobava, Baadur"]
[Black "Boros, Denes"]
[WhiteFideId "13601520"]
[BlackFideId "722340"]
[WhiteElo "2582"]
[BlackElo "2464"]
[Result "1-0"]
[Round "09"]
[TimeControl "180+1"]
[Date "2022.12.20"]
[WhiteClock "0:00:27"]
[BlackClock "0:00:21"]

1. d4 {[%clk 0:03:00]}  Nf6 {[%clk 0:02:59]} 2. Bg5 {[%clk 0:03:00]}  Ne4 {[%clk 0:02:58]} 3. Bf4 {[%clk 0:03:00]}  d5 {[%clk 0:02:58]} 4. f3 {[%clk 0:03:00]}  Nf6 {[%clk 0:02:57]} 5. Nc3 {[%clk 0:03:01]}  e6 {[%clk 0:02:56]} 6. e3 {[%clk 0:02:59]}  a6 {[%clk 0:02:54]} 7. Nge2 {[%clk 0:02:54]}  b5 {[%clk 0:02:54]} 8. a3 {[%clk 0:02:51]}  Bb7 {[%clk 0:02:54]} 9. b4 {[%clk 0:02:48]}  Bd6 {[%clk 0:02:49]} 10. Nc1 {[%clk 0:02:45]}  Nh5 {[%clk 0:02:42]} 11. g3 {[%clk 0:02:43]}  Be7 {[%clk 0:02:37]} 12. h4 {[%clk 0:02:36]}  Nd7 {[%clk 0:02:29]} 13. Nb3 {[%clk 0:02:35]}  O-O {[%clk 0:02:25]} 14. Bd3 {[%clk 0:02:35]}  Nb6 {[%clk 0:02:20]} 15. Nc5 {[%clk 0:02:33]}  Bc6 {[%clk 0:02:15]} 16. Kf2 {[%clk 0:02:31]}  Nc4 {[%clk 0:02:09]} 17. Qe2 {[%clk 0:02:28]}  Bd6 {[%clk 0:02:01]} 18. a4 {[%clk 0:02:04]}  Qe7 {[%clk 0:01:53]} 19. axb5 {[%clk 0:02:01]}  axb5 {[%clk 0:01:51]} 20. Bxc4 {[%clk 0:01:59]}  dxc4 {[%clk 0:01:47]} 21. N3e4 {[%clk 0:01:55]}  Rxa1 {[%clk 0:01:26]} 22. Rxa1 {[%clk 0:01:54]}  e5 {[%clk 0:01:26]} 23. dxe5 {[%clk 0:01:51]}  Bxe5 {[%clk 0:01:26]} 24. Bxe5 {[%clk 0:01:28]}  Qxe5 {[%clk 0:01:27]} 25. Rg1 {[%clk 0:01:28]}  f5 {[%clk 0:01:21]} 26. Ng5 {[%clk 0:01:25]}  Nf6 {[%clk 0:01:14]} 27. Nge6 {[%clk 0:01:19]}  Re8 {[%clk 0:01:11]} 28. Nd4 {[%clk 0:01:19]}  Bd7 {[%clk 0:01:04]} 29. Rd1 {[%clk 0:01:15]}  Re7 {[%clk 0:00:49]} 30. Qd2 {[%clk 0:00:59]}  Be8 {[%clk 0:00:38]} 31. Ne2 {[%clk 0:00:55]}  Kh8 {[%clk 0:00:30]} 32. Qd4 {[%clk 0:00:51]}  Qxd4 {[%clk 0:00:24]} 33. Rxd4 {[%clk 0:00:51]}  g6 {[%clk 0:00:25]} 34. Nc3 {[%clk 0:00:51]}  Kg7 {[%clk 0:00:24]} 35. Rd8 {[%clk 0:00:49]}  h6 {[%clk 0:00:22]} 36. Ne2 {[%clk 0:00:46]}  Bf7 {[%clk 0:00:19]} 37. Nd4 {[%clk 0:00:36]}  Re8 {[%clk 0:00:19]} 38. Rxe8 {[%clk 0:00:34]}  Bxe8 {[%clk 0:00:20]} 39. Nce6+ {[%clk 0:00:34]}  Kf7 {[%clk 0:00:21]} 40. Nxc7 {[%clk 0:00:35]}  Bd7 {[%clk 0:00:21]} 41. Ncxb5 {[%clk 0:00:35]}  Nd5 {[%clk 0:00:21]} 42. Nd6+ {[%clk 0:00:32]}  Kf6 {[%clk 0:00:21]} 43. Nxc4 {[%clk 0:00:33]}  Nxb4 {[%clk 0:00:21]} 44. e4 {[%clk 0:00:31]}  fxe4 {[%clk 0:00:20]} 45. fxe4 {[%clk 0:00:32]}  g5 {[%clk 0:00:21]} 46. hxg5+ {[%clk 0:00:32]}  Kxg5 {[%clk 0:00:21]} 47. Ke3 {[%clk 0:00:28]}  Kg4 {[%clk 0:00:21]} 48. Ne5+ {[%clk 0:00:28]}  Kxg3 {[%clk 0:00:21]} 49. Nxd7 {[%clk 0:00:29]}  h5 {[%clk 0:00:22]} 50. c3 {[%clk 0:00:28]}  h4 {[%clk 0:00:20]} 51. Nf5+ {[%clk 0:00:28]}  Kg4 {[%clk 0:00:21]} 52. Ne5+ {[%clk 0:00:26]}  Kg5 {[%clk 0:00:20]} 53. cxb4 {[%clk 0:00:26]}  h3 {[%clk 0:00:21]} 54. Nf3+ {[%clk 0:00:27]} 1-0


[Site "https://www.chess.com"]